[Event "Late-Titled-Tuesday-Blitz-May-28-2024"]
[Site "Chess.com"]
[Date "2024.05.28"]
[Round "3"]
[White "DirtyKabab"]
[Black "ViktoriyaTarasova"]
[Result "1/2-1/2"]
[WhiteElo "2561"]
[BlackElo "2400"]
[TimeControl "180+1"]
[EndTime "14:30:46 PDT"]
[Termination "Game drawn - insufficient material"]

1. e4 {[%clk 0:03:00.9]} 1... e5 {[%clk 0:02:59.4]} 2. Nf3 {[%clk 0:03:01.1]}
2... Nc6 {[%clk 0:02:59.3]} 3. Nc3 {[%clk 0:03:00.7]} 3... Nf6 {[%clk
0:02:59.3]} 4. a3 {[%clk 0:02:59.9]} 4... d5 {[%clk 0:02:57.6]} 5. Bb5 {[%clk
0:02:59]} 5... dxe4 {[%clk 0:02:44.7]} 6. Nxe5 {[%clk 0:02:59]} 6... Bd7 {[%clk
0:02:44.5]} 7. Bxc6 {[%clk 0:02:56.8]} 7... Bxc6 {[%clk 0:02:42.7]} 8. Nxc6
{[%clk 0:02:56.6]} 8... bxc6 {[%clk 0:02:43.4]} 9. O-O {[%clk 0:02:54.6]} 9...
Bc5 {[%clk 0:02:39.9]} 10. Qe2 {[%clk 0:02:50.8]} 10... O-O {[%clk 0:02:31.9]}
11. Nxe4 {[%clk 0:02:43.8]} 11... Re8 {[%clk 0:02:30.4]} 12. d3 {[%clk
0:02:37.9]} 12... h6 {[%clk 0:02:20.1]} 13. Qf3 {[%clk 0:01:52.3]} 13... Nxe4
{[%clk 0:02:14]} 14. dxe4 {[%clk 0:01:53.2]} 14... Qe7 {[%clk 0:02:14]} 15. Re1
{[%clk 0:01:45]} 15... Rab8 {[%clk 0:02:11.5]} 16. b4 {[%clk 0:01:32.1]} 16...
Bd4 {[%clk 0:02:09.6]} 17. c3 {[%clk 0:01:31.3]} 17... Bf6 {[%clk 0:02:08.3]}
18. Bf4 {[%clk 0:01:29.4]} 18... Be5 {[%clk 0:02:03.3]} 19. Rad1 {[%clk
0:01:20.3]} 19... Rbd8 {[%clk 0:02:00.9]} 20. h3 {[%clk 0:01:01.3]} 20... Qf6
{[%clk 0:01:59.9]} 21. Bxe5 {[%clk 0:01:00]} 21... Qxe5 {[%clk 0:01:58.1]} 22.
Qe3 {[%clk 0:00:51.9]} 22... Rxd1 {[%clk 0:01:55.4]} 23. Rxd1 {[%clk 0:00:52.8]}
23... Qxe4 {[%clk 0:01:55.5]} 24. Qxe4 {[%clk 0:00:32.2]} 24... Rxe4 {[%clk
0:01:55.1]} 25. Rd8+ {[%clk 0:00:32.9]} 25... Kh7 {[%clk 0:01:53.2]} 26. Rd7
{[%clk 0:00:33.8]} 26... Rc4 {[%clk 0:01:43.4]} 27. Rxc7 {[%clk 0:00:32.4]}
27... Rxc3 {[%clk 0:01:44.1]} 28. Rxa7 {[%clk 0:00:32.4]} 28... Kg6 {[%clk
0:01:42.3]} 29. g3 {[%clk 0:00:26.7]} 29... f6 {[%clk 0:01:28.2]} 30. Ra5 {[%clk
0:00:24.7]} 30... Kf7 {[%clk 0:01:23.9]} 31. h4 {[%clk 0:00:24.1]} 31... g6
{[%clk 0:01:19.6]} 32. Kg2 {[%clk 0:00:18.8]} 32... h5 {[%clk 0:01:20]} 33. Kf1
{[%clk 0:00:18.3]} 33... Ke6 {[%clk 0:01:19.5]} 34. Ke2 {[%clk 0:00:18.2]} 34...
Rc2+ {[%clk 0:01:18.8]} 35. Ke3 {[%clk 0:00:18.2]} 35... Kd6 {[%clk 0:01:16.6]}
36. Kf3 {[%clk 0:00:17]} 36... Rc3+ {[%clk 0:01:14]} 37. Kf4 {[%clk 0:00:15.5]}
37... Rc2 {[%clk 0:01:11.9]} 38. f3 {[%clk 0:00:15.2]} 38... Rc4+ {[%clk
0:01:11.7]} 39. Ke3 {[%clk 0:00:15.1]} 39... Rc3+ {[%clk 0:01:12.4]} 40. Ke4
{[%clk 0:00:14.6]} 40... Rc1 {[%clk 0:01:05.8]} 41. Ra8 {[%clk 0:00:12.3]} 41...
Rg1 {[%clk 0:01:01.1]} 42. Kf4 {[%clk 0:00:11.4]} 42... Ra1 {[%clk 0:00:58.7]}
43. Rg8 {[%clk 0:00:10]} 43... Rxa3 {[%clk 0:00:56.2]} 44. Rxg6 {[%clk 0:00:10]}
44... Ke6 {[%clk 0:00:49.4]} 45. Rg8 {[%clk 0:00:10.5]} 45... Rb3 {[%clk
0:00:46]} 46. Rb8 {[%clk 0:00:10.8]} 46... c5 {[%clk 0:00:46.3]} 47. b5 {[%clk
0:00:11.1]} 47... c4 {[%clk 0:00:46.6]} 48. g4 {[%clk 0:00:08.7]} 48... hxg4
{[%clk 0:00:39.4]} 49. fxg4 {[%clk 0:00:09.6]} 49... c3 {[%clk 0:00:39.6]} 50.
Rc8 {[%clk 0:00:05.4]} 50... Rb4+ {[%clk 0:00:37.6]} 51. Kg3 {[%clk 0:00:04.4]}
51... Rxb5 {[%clk 0:00:31.3]} 52. Rxc3 {[%clk 0:00:04.6]} 52... Kf7 {[%clk
0:00:31.9]} 53. Rf3 {[%clk 0:00:04.8]} 53... Kg6 {[%clk 0:00:31]} 54. Rf4 {[%clk
0:00:04]} 54... Rb3+ {[%clk 0:00:30.5]} 55. Rf3 {[%clk 0:00:04.6]} 55... Rb4
{[%clk 0:00:30.8]} 56. Re3 {[%clk 0:00:04.5]} 56... Ra4 {[%clk 0:00:30.8]} 57.
Rf3 {[%clk 0:00:04.9]} 57... Rb4 {[%clk 0:00:30.9]} 58. h5+ {[%clk 0:00:05.4]}
58... Kg7 {[%clk 0:00:30.5]} 59. Rf4 {[%clk 0:00:05.2]} 59... Rb3+ {[%clk
0:00:30.1]} 60. Kh4 {[%clk 0:00:05.6]} 60... Rb5 {[%clk 0:00:30.4]} 61. Rf5
{[%clk 0:00:04.8]} 61... Rb1 {[%clk 0:00:28.2]} 62. Kg3 {[%clk 0:00:03.1]} 62...
Rg1+ {[%clk 0:00:27.8]} 63. Kf4 {[%clk 0:00:03.6]} 63... Rf1+ {[%clk 0:00:27.5]}
64. Ke4 {[%clk 0:00:04.2]} 64... Re1+ {[%clk 0:00:27.4]} 65. Kd4 {[%clk
0:00:04.1]} 65... Rg1 {[%clk 0:00:26.7]} 66. Rf4 {[%clk 0:00:04.5]} 66... Re1
{[%clk 0:00:24.9]} 67. Kd5 {[%clk 0:00:04.4]} 67... Re2 {[%clk 0:00:24.6]} 68.
Re4 {[%clk 0:00:04.4]} 68... Ra2 {[%clk 0:00:20.3]} 69. Ke6 {[%clk 0:00:04.8]}
69... Ra6+ {[%clk 0:00:19.6]} 70. Kf5 {[%clk 0:00:04.3]} 70... Ra5+ {[%clk
0:00:19]} 71. Kf4 {[%clk 0:00:04.5]} 71... Rb5 {[%clk 0:00:17.4]} 72. Rc4 {[%clk
0:00:04.2]} 72... Ra5 {[%clk 0:00:17.5]} 73. Rc7+ {[%clk 0:00:03.7]} 73... Kh6
{[%clk 0:00:15.5]} 74. Rc6 {[%clk 0:00:04.1]} 74... Kg7 {[%clk 0:00:15]} 75. Kg3
{[%clk 0:00:04.1]} 75... Rb5 {[%clk 0:00:14.5]} 76. Kh4 {[%clk 0:00:04.3]} 76...
Ra5 {[%clk 0:00:14.1]} 77. Rc7+ {[%clk 0:00:04.8]} 77... Kh6 {[%clk 0:00:13.6]}
78. Rf7 {[%clk 0:00:05.2]} 78... Ra6 {[%clk 0:00:12.4]} 79. Rf8 {[%clk 0:00:04]}
79... Rb6 {[%clk 0:00:12.5]} 80. Kg3 {[%clk 0:00:02.2]} 80... Kg7 {[%clk
0:00:12.5]} 81. Rc8 {[%clk 0:00:01.7]} 81... Rb4 {[%clk 0:00:12.6]} 82. Kh4
{[%clk 0:00:02.1]} 82... Rb5 {[%clk 0:00:12.2]} 83. Rc7+ {[%clk 0:00:02.6]}
83... Kh6 {[%clk 0:00:12.2]} 84. Rf7 {[%clk 0:00:01.8]} 84... Rb6 {[%clk
0:00:12.6]} 85. Rxf6+ {[%clk 0:00:02.2]} 85... Rxf6 {[%clk 0:00:12.3]} 86. g5+
{[%clk 0:00:03.1]} 86... Kg7 {[%clk 0:00:12.8]} 87. gxf6+ {[%clk 0:00:03.7]}
87... Kxf6 {[%clk 0:00:13.5]} 88. Kg4 {[%clk 0:00:04]} 88... Kg7 {[%clk
0:00:13.8]} 89. h6+ {[%clk 0:00:04.9]} 89... Kh7 {[%clk 0:00:13.7]} 90. Kh4
{[%clk 0:00:04.5]} 90... Kxh6 {[%clk 0:00:13.4]} 1/2-1/2

[Event "Late-Titled-Tuesday-Blitz-May-28-2024"]
[Site "Chess.com"]
[Date "2024.05.28"]
[Round "3"]
[White "giomar27"]
[Black "stolencandy13"]
[Result "1/2-1/2"]
[WhiteElo "2463"]
[BlackElo "2621"]
[TimeControl "180+1"]
[EndTime "14:31:08 PDT"]
[Termination "Game drawn - insufficient material"]

1. e4 {[%clk 0:03:00.9]} 1... c6 {[%clk 0:02:58.5]} 2. Nc3 {[%clk 0:02:58.9]}
2... d5 {[%clk 0:02:59.4]} 3. Nf3 {[%clk 0:02:59.1]} 3... Bg4 {[%clk 0:02:58.6]}
4. h3 {[%clk 0:02:57.8]} 4... Bxf3 {[%clk 0:02:58.7]} 5. Qxf3 {[%clk 0:02:58.2]}
5... Nf6 {[%clk 0:02:59.6]} 6. d3 {[%clk 0:02:57.5]} 6... e6 {[%clk 0:02:59.3]}
7. g3 {[%clk 0:02:57.7]} 7... Nbd7 {[%clk 0:02:58.9]} 8. Bg2 {[%clk 0:02:58]}
8... g6 {[%clk 0:02:59.4]} 9. O-O {[%clk 0:02:58]} 9... Bg7 {[%clk 0:02:59.9]}
10. Qe2 {[%clk 0:02:58.5]} 10... O-O {[%clk 0:02:58]} 11. Bd2 {[%clk 0:02:59]}
11... Qc7 {[%clk 0:02:57.6]} 12. f4 {[%clk 0:02:58.7]} 12... Rfe8 {[%clk
0:02:52.8]} 13. e5 {[%clk 0:02:58.7]} 13... Nh5 {[%clk 0:02:51.9]} 14. Kh2
{[%clk 0:02:52.3]} 14... Nxe5 {[%clk 0:02:49.4]} 15. g4 {[%clk 0:02:37.1]} 15...
Nxg4+ {[%clk 0:02:13.9]} 16. hxg4 {[%clk 0:02:30.4]} 16... Nf6 {[%clk 0:02:14]}
17. Kg1 {[%clk 0:02:02.9]} 17... h5 {[%clk 0:02:09.7]} 18. gxh5 {[%clk
0:01:58.6]} 18... Nxh5 {[%clk 0:02:07.8]} 19. Qf2 {[%clk 0:01:57.6]} 19... c5
{[%clk 0:01:48.7]} 20. Nd1 {[%clk 0:01:39.9]} 20... Nf6 {[%clk 0:01:13.1]} 21.
c3 {[%clk 0:01:34.2]} 21... Ng4 {[%clk 0:01:05]} 22. Qg3 {[%clk 0:01:32.7]}
22... Nh6 {[%clk 0:01:01]} 23. Bh3 {[%clk 0:01:28]} 23... Nf5 {[%clk 0:00:59.3]}
24. Qf2 {[%clk 0:01:23.5]} 24... Bf6 {[%clk 0:00:57.8]} 25. Ne3 {[%clk
0:01:20.9]} 25... d4 {[%clk 0:00:55.2]} 26. Ng4 {[%clk 0:01:12.5]} 26... Bg7
{[%clk 0:00:54.8]} 27. c4 {[%clk 0:01:09.4]} 27... a6 {[%clk 0:00:44]} 28. Rae1
{[%clk 0:01:06.1]} 28... b5 {[%clk 0:00:43.7]} 29. b3 {[%clk 0:01:06.7]} 29...
bxc4 {[%clk 0:00:43.9]} 30. bxc4 {[%clk 0:01:04.8]} 30... Rab8 {[%clk
0:00:44.2]} 31. Rb1 {[%clk 0:01:01.9]} 31... Rb7 {[%clk 0:00:32.8]} 32. Bg2
{[%clk 0:01:01.9]} 32... Rxb1 {[%clk 0:00:32]} 33. Rxb1 {[%clk 0:01:02.8]} 33...
Rb8 {[%clk 0:00:29.5]} 34. Qe1 {[%clk 0:01:00]} 34... Bf8 {[%clk 0:00:20.4]} 35.
Ne5 {[%clk 0:00:58.4]} 35... Bd6 {[%clk 0:00:18.7]} 36. Kf2 {[%clk 0:00:38.9]}
36... Bxe5 {[%clk 0:00:17.9]} 37. Rxb8+ {[%clk 0:00:36.4]} 37... Qxb8 {[%clk
0:00:16.1]} 38. fxe5 {[%clk 0:00:25.8]} 38... Qd8 {[%clk 0:00:13.6]} 39. Ke2
{[%clk 0:00:22.5]} 39... Qb8 {[%clk 0:00:11.9]} 40. Bf4 {[%clk 0:00:15]} 40...
Qb2+ {[%clk 0:00:11.8]} 41. Qd2 {[%clk 0:00:15.4]} 41... Qb1 {[%clk 0:00:12.3]}
42. Qc1 {[%clk 0:00:14.6]} 42... Qxa2+ {[%clk 0:00:12.2]} 43. Qd2 {[%clk
0:00:13.5]} 43... Qb1 {[%clk 0:00:12.5]} 44. Be4 {[%clk 0:00:13]} 44... Qg1
{[%clk 0:00:11.1]} 45. Bxf5 {[%clk 0:00:13]} 45... gxf5 {[%clk 0:00:11.3]} 46.
Bh6 {[%clk 0:00:12.5]} 46... Kh7 {[%clk 0:00:11.2]} 47. Qg5 {[%clk 0:00:09.9]}
47... Qh2+ {[%clk 0:00:11]} 48. Kd1 {[%clk 0:00:09.4]} 48... Qxh6 {[%clk
0:00:11.4]} 49. Qe7 {[%clk 0:00:08.6]} 49... Kg7 {[%clk 0:00:10.4]} 50. Qd8
{[%clk 0:00:07.1]} 50... Qh5+ {[%clk 0:00:10.1]} 51. Kc2 {[%clk 0:00:06.4]}
51... f4 {[%clk 0:00:10]} 52. Qf6+ {[%clk 0:00:05.9]} 52... Kh7 {[%clk
0:00:09.6]} 53. Qxf4 {[%clk 0:00:06.3]} 53... Qf5 {[%clk 0:00:09.6]} 54. Qh4+
{[%clk 0:00:06.2]} 54... Kg6 {[%clk 0:00:09.5]} 55. Qg3+ {[%clk 0:00:06.5]}
55... Kh7 {[%clk 0:00:09.1]} 56. Qh4+ {[%clk 0:00:06.7]} 56... Kg8 {[%clk
0:00:09.3]} 57. Qd8+ {[%clk 0:00:06.9]} 57... Kg7 {[%clk 0:00:09.3]} 58. Qc7
{[%clk 0:00:06.2]} 58... Kg6 {[%clk 0:00:09.1]} 59. Qxc5 {[%clk 0:00:06.1]}
59... f6 {[%clk 0:00:08.9]} 60. Qxd4 {[%clk 0:00:04.3]} 60... fxe5 {[%clk
0:00:08.8]} 61. Qg1+ {[%clk 0:00:04.2]} 61... Kf6 {[%clk 0:00:09.1]} 62. Qa7
{[%clk 0:00:03.5]} 62... e4 {[%clk 0:00:09.4]} 63. Qd4+ {[%clk 0:00:03.1]} 63...
Kf7 {[%clk 0:00:08.1]} 64. dxe4 {[%clk 0:00:03.2]} 64... Qf3 {[%clk 0:00:07.9]}
65. Qd7+ {[%clk 0:00:03]} 65... Kf6 {[%clk 0:00:07.8]} 66. Qd4+ {[%clk
0:00:03.9]} 66... Ke7 {[%clk 0:00:07.9]} 67. Qa7+ {[%clk 0:00:04.2]} 67... Kd6
{[%clk 0:00:08]} 68. Qb6+ {[%clk 0:00:04.2]} 68... Ke5 {[%clk 0:00:08.3]} 69.
Qxa6 {[%clk 0:00:04.1]} 69... Qxe4+ {[%clk 0:00:08]} 70. Kb3 {[%clk 0:00:04.5]}
70... Qd3+ {[%clk 0:00:07.9]} 71. Kb4 {[%clk 0:00:04.8]} 71... Qd2+ {[%clk
0:00:07.9]} 72. Kc5 {[%clk 0:00:04.4]} 72... Kf5 {[%clk 0:00:08.4]} 73. Qb5
{[%clk 0:00:04.5]} 73... e5 {[%clk 0:00:08.8]} 74. Kc6 {[%clk 0:00:04.2]} 74...
Kf4 {[%clk 0:00:07.9]} 75. c5 {[%clk 0:00:04.6]} 75... e4 {[%clk 0:00:08.4]} 76.
Qc4 {[%clk 0:00:04.9]} 76... Qd3 {[%clk 0:00:08]} 77. Qf7+ {[%clk 0:00:04.6]}
77... Kg3 {[%clk 0:00:08]} 78. Qg6+ {[%clk 0:00:04.7]} 78... Kf2 {[%clk
0:00:08.3]} 79. Kb6 {[%clk 0:00:05.1]} 79... Qb3+ {[%clk 0:00:06.4]} 80. Kc7
{[%clk 0:00:05.6]} 80... Qf3 {[%clk 0:00:07.3]} 81. c6 {[%clk 0:00:05.3]} 81...
e3 {[%clk 0:00:07.7]} 82. Kd7 {[%clk 0:00:03.8]} 82... e2 {[%clk 0:00:07.4]} 83.
c7 {[%clk 0:00:03.9]} 83... e1=Q {[%clk 0:00:07.7]} 84. Qb6+ {[%clk 0:00:03.9]}
84... Kf1 {[%clk 0:00:06.2]} 85. Qb5+ {[%clk 0:00:03.2]} 85... Kg1 {[%clk
0:00:02.7]} 86. Qc5+ {[%clk 0:00:03.5]} 86... Kf1 {[%clk 0:00:02.9]} 87. Qc4+
{[%clk 0:00:03.1]} 87... Kg2 {[%clk 0:00:03.3]} 88. Qc2+ {[%clk 0:00:02.7]}
88... Kg3 {[%clk 0:00:02.9]} 89. c8=Q {[%clk 0:00:03.4]} 89... Qg4+ {[%clk
0:00:02.2]} 90. Kd8 {[%clk 0:00:03.2]} 90... Qf2 {[%clk 0:00:02]} 91. Qd3+
{[%clk 0:00:02.5]} 91... Qff3 {[%clk 0:00:02.5]} 92. Qxf3+ {[%clk 0:00:02.2]}
92... Qxf3 {[%clk 0:00:03.3]} 93. Qd7 {[%clk 0:00:02.9]} 93... Kf2 {[%clk
0:00:04.2]} 94. Qe7 {[%clk 0:00:03.1]} 94... Kg2 {[%clk 0:00:04.6]} 95. Qd7
{[%clk 0:00:04]} 95... Kf2 {[%clk 0:00:04.9]} 96. Ke8 {[%clk 0:00:04.8]} 96...
Qe3+ {[%clk 0:00:05.2]} 97. Kd8 {[%clk 0:00:05.7]} 97... Qf4 {[%clk 0:00:05.2]}
98. Qc7 {[%clk 0:00:06.6]} 98... Kg3 {[%clk 0:00:05.9]} 99. Kc8 {[%clk
0:00:07.3]} 99... Kg4 {[%clk 0:00:05.9]} 100. Kb7 {[%clk 0:00:08.2]} 100... Kf5
{[%clk 0:00:06.2]} 101. Qxf4+ {[%clk 0:00:08.8]} 101... Kxf4 {[%clk 0:00:06.4]}
1/2-1/2

[Event "Late-Titled-Tuesday-Blitz-May-28-2024"]
[Site "Chess.com"]
[Date "2024.05.28"]
[Round "4"]
[White "Karttunen"]
[Black "giomar27"]
[Result "1-0"]
[WhiteElo "2658"]
[BlackElo "2459"]
[TimeControl "180+1"]
[EndTime "14:33:21 PDT"]
[Termination "Karttunen won by resignation"]

1. d4 {[%clk 0:03:00.9]} 1... Nf6 {[%clk 0:03:00]} 2. c4 {[%clk 0:03:00.4]} 2...
g6 {[%clk 0:03:00.3]} 3. Nc3 {[%clk 0:02:58.8]} 3... d5 {[%clk 0:02:59.5]} 4.
cxd5 {[%clk 0:02:58.5]} 4... Nxd5 {[%clk 0:02:59.7]} 5. e4 {[%clk 0:02:59.1]}
5... Nxc3 {[%clk 0:02:59.5]} 6. bxc3 {[%clk 0:03:00]} 6... c5 {[%clk 0:02:59.2]}
7. Be3 {[%clk 0:02:59.9]} 7... Bg7 {[%clk 0:02:58.7]} 8. Qd2 {[%clk 0:02:59.8]}
8... O-O {[%clk 0:02:58.4]} 9. Rd1 {[%clk 0:02:49]} 9... Qa5 {[%clk 0:02:58.4]}
10. Bc4 {[%clk 0:02:37.6]} 10... Nc6 {[%clk 0:02:58.2]} 11. Ne2 {[%clk
0:02:36.7]} 11... b5 {[%clk 0:02:54.2]} 12. Bd3 {[%clk 0:02:28.2]} 12... Rd8
{[%clk 0:02:49.1]} 13. d5 {[%clk 0:02:24.7]} 13... Ne5 {[%clk 0:02:48.7]} 14.
Bxc5 {[%clk 0:02:19.1]} 14... Nxd3+ {[%clk 0:02:48.4]} 15. Qxd3 {[%clk 0:02:19]}
15... Bg4 {[%clk 0:02:42.4]} 16. f3 {[%clk 0:02:18.7]} 16... Rac8 {[%clk
0:02:41.3]} 17. Bb4 {[%clk 0:02:18.1]} 17... Qb6 {[%clk 0:02:37.7]} 18. fxg4
{[%clk 0:02:17.5]} 18... a5 {[%clk 0:02:36.5]} 19. Bxe7 {[%clk 0:02:16.9]} 19...
Re8 {[%clk 0:02:36.6]} 20. d6 {[%clk 0:02:17.1]} 1-0

[Event "Late-Titled-Tuesday-Blitz-May-28-2024"]
[Site "Chess.com"]
[Date "2024.05.28"]
[Round "4"]
[White "PhileKhoob"]
[Black "secretworker2027"]
[Result "0-1"]
[WhiteElo "2328"]
[BlackElo "2622"]
[TimeControl "180+1"]
[EndTime "14:34:35 PDT"]
[Termination "secretworker2027 won by resignation"]

1. Nf3 {[%clk 0:03:00.9]} 1... Nf6 {[%clk 0:02:47.4]} 2. g3 {[%clk 0:03:00.4]}
2... e6 {[%clk 0:02:47.2]} 3. Bg2 {[%clk 0:03:00.2]} 3... d5 {[%clk 0:02:48.1]}
4. d4 {[%clk 0:02:59.7]} 4... c5 {[%clk 0:02:48]} 5. O-O {[%clk 0:02:59.3]} 5...
Nc6 {[%clk 0:02:45.4]} 6. c4 {[%clk 0:02:58.4]} 6... Be7 {[%clk 0:02:45.5]} 7.
cxd5 {[%clk 0:02:57.5]} 7... exd5 {[%clk 0:02:46.4]} 8. Nc3 {[%clk 0:02:56.9]}
8... O-O {[%clk 0:02:46.3]} 9. dxc5 {[%clk 0:02:57.2]} 9... Bxc5 {[%clk
0:02:45.9]} 10. Na4 {[%clk 0:02:57.2]} 10... Be7 {[%clk 0:02:42.8]} 11. Be3
{[%clk 0:02:56.7]} 11... Re8 {[%clk 0:02:42.3]} 12. Bc5 {[%clk 0:02:49.7]} 12...
Bxc5 {[%clk 0:02:37.6]} 13. Nxc5 {[%clk 0:02:50.6]} 13... Qe7 {[%clk 0:02:36.9]}
14. Rc1 {[%clk 0:02:28.7]} 14... Qxe2 {[%clk 0:02:34.7]} 15. Re1 {[%clk
0:02:17.5]} 15... Qxd1 {[%clk 0:02:34.5]} 16. Rcxd1 {[%clk 0:02:17.5]} 16... Bg4
{[%clk 0:02:26.7]} 17. Nxb7 {[%clk 0:02:02.5]} 17... Ne5 {[%clk 0:01:58.6]} 18.
Re3 {[%clk 0:01:59.3]} 18... Nxf3+ {[%clk 0:01:53.7]} 19. Bxf3 {[%clk
0:01:58.2]} 19... Rxe3 {[%clk 0:01:53.3]} 20. Bxg4 {[%clk 0:01:58.2]} 20... Re7
{[%clk 0:01:53]} 0-1

[Event "Late-Titled-Tuesday-Blitz-May-28-2024"]
[Site "Chess.com"]
[Date "2024.05.28"]
[Round "4"]
[White "VD_coach"]
[Black "northridgehawk"]
[Result "1-0"]
[WhiteElo "2528"]
[BlackElo "2347"]
[TimeControl "180+1"]
[EndTime "14:35:00 PDT"]
[Termination "VD_coach won by resignation"]

1. Nf3 {[%clk 0:02:44.7]} 1... Nf6 {[%clk 0:02:59.7]} 2. d4 {[%clk 0:02:45.6]}
2... d5 {[%clk 0:02:59.6]} 3. c4 {[%clk 0:02:46.5]} 3... c5 {[%clk 0:02:59.8]}
4. cxd5 {[%clk 0:02:45.1]} 4... cxd4 {[%clk 0:03:00.2]} 5. Nxd4 {[%clk
0:02:44.7]} 5... Qxd5 {[%clk 0:03:00.3]} 6. Nc3 {[%clk 0:02:43.9]} 6... Qd8
{[%clk 0:03:00.6]} 7. e4 {[%clk 0:02:44.1]} 7... Nc6 {[%clk 0:02:59.8]} 8. Bb5
{[%clk 0:02:44.2]} 8... Bd7 {[%clk 0:03:00.6]} 9. Be3 {[%clk 0:02:37.6]} 9...
Nxd4 {[%clk 0:02:59.9]} 10. Bxd4 {[%clk 0:02:38.1]} 10... e6 {[%clk 0:02:58.9]}
11. O-O {[%clk 0:02:34.7]} 11... Be7 {[%clk 0:02:59.3]} 12. e5 {[%clk
0:02:25.4]} 12... Nd5 {[%clk 0:02:58.3]} 13. Nxd5 {[%clk 0:02:25.1]} 13... exd5
{[%clk 0:02:59.2]} 14. Bd3 {[%clk 0:02:22.8]} 14... O-O {[%clk 0:02:58.6]} 15.
Re1 {[%clk 0:02:21.6]} 15... Be6 {[%clk 0:02:58.7]} 16. Qf3 {[%clk 0:02:08.1]}
16... Rc8 {[%clk 0:02:58]} 17. Rad1 {[%clk 0:02:06.9]} 17... a6 {[%clk
0:02:56.8]} 18. Qg3 {[%clk 0:01:57.1]} 18... Rc6 {[%clk 0:02:55.3]} 19. f4
{[%clk 0:01:49.9]} 19... Qd7 {[%clk 0:02:53.2]} 20. f5 {[%clk 0:01:46.5]} 20...
Bxf5 {[%clk 0:02:32.6]} 21. e6 {[%clk 0:01:39.6]} 21... Bf6 {[%clk 0:02:25]} 22.
Bxf6 {[%clk 0:01:36.6]} 22... fxe6 {[%clk 0:02:24.4]} 23. Be5 {[%clk 0:01:29.6]}
23... Bxd3 {[%clk 0:02:23.5]} 24. Rxd3 {[%clk 0:01:27.8]} 24... Rc2 {[%clk
0:02:22.5]} 25. Rf3 {[%clk 0:01:26.4]} 25... Rxf3 {[%clk 0:02:20.4]} 26. Qxf3
{[%clk 0:01:27.3]} 26... Qc6 {[%clk 0:02:20.1]} 27. Rf1 {[%clk 0:01:20.6]} 27...
Qb6+ {[%clk 0:02:19.8]} 28. Kh1 {[%clk 0:01:19.6]} 28... Qd8 {[%clk 0:02:20]}
29. Qf7+ {[%clk 0:01:18.6]} 1-0

[Event "Late-Titled-Tuesday-Blitz-May-28-2024"]
[Site "Chess.com"]
[Date "2024.05.28"]
[Round "4"]
[White "chess_sharparchitect"]
[Black "blueryder"]
[Result "1-0"]
[WhiteElo "2356"]
[BlackElo "2168"]
[TimeControl "180+1"]
[EndTime "14:35:07 PDT"]
[Termination "chess_sharparchitect won by checkmate"]

1. c4 {[%clk 0:03:00.9]} 1... e5 {[%clk 0:02:55.5]} 2. Nc3 {[%clk 0:02:56.9]}
2... Nc6 {[%clk 0:02:54.8]} 3. Nf3 {[%clk 0:02:56.9]} 3... f5 {[%clk 0:02:54.4]}
4. d4 {[%clk 0:02:56.6]} 4... e4 {[%clk 0:02:54.6]} 5. Ng5 {[%clk 0:02:56.3]}
5... Nf6 {[%clk 0:02:54.6]} 6. h4 {[%clk 0:02:54]} 6... h6 {[%clk 0:02:46.2]} 7.
Nh3 {[%clk 0:02:52.9]} 7... Bd6 {[%clk 0:02:39.3]} 8. c5 {[%clk 0:02:43.9]} 8...
Be7 {[%clk 0:02:38.4]} 9. Nf4 {[%clk 0:02:41.1]} 9... O-O {[%clk 0:02:36.9]} 10.
d5 {[%clk 0:02:11.7]} 10... Ne5 {[%clk 0:02:35.8]} 11. d6 {[%clk 0:02:11.5]}
11... cxd6 {[%clk 0:02:34.5]} 12. cxd6 {[%clk 0:02:11.1]} 12... Bxd6 {[%clk
0:02:16.2]} 13. Qxd6 {[%clk 0:02:12]} 13... Re8 {[%clk 0:02:15.8]} 14. e3 {[%clk
0:02:05.3]} 14... Nf7 {[%clk 0:02:15.7]} 15. Bc4 {[%clk 0:02:00.8]} 15... a6
{[%clk 0:02:00.8]} 16. Ncd5 {[%clk 0:01:15.9]} 16... Nxd6 {[%clk 0:01:57.6]} 17.
Nxf6+ {[%clk 0:01:15.8]} 17... Kf8 {[%clk 0:01:46.3]} 18. Ng6# {[%clk
0:01:15.8]} 1-0

[Event "Late-Titled-Tuesday-Blitz-May-28-2024"]
[Site "Chess.com"]
[Date "2024.05.28"]
[Round "4"]
[White "Valiyev_Shahin"]
[Black "NovakRatko"]
[Result "1-0"]
[WhiteElo "2534"]
[BlackElo "2361"]
[TimeControl "180+1"]
[EndTime "14:35:25 PDT"]
[Termination "Valiyev_Shahin won by resignation"]

1. e4 {[%clk 0:03:00.9]} 1... d6 {[%clk 0:02:48.2]} 2. d4 {[%clk 0:03:00.5]}
2... c5 {[%clk 0:02:47.3]} 3. dxc5 {[%clk 0:02:52.3]} 3... dxc5 {[%clk
0:02:48.2]} 4. Qxd8+ {[%clk 0:02:42.8]} 4... Kxd8 {[%clk 0:02:45.5]} 5. Be3
{[%clk 0:02:42.7]} 5... e5 {[%clk 0:02:44.7]} 6. Na3 {[%clk 0:02:35.6]} 6... Nf6
{[%clk 0:02:44.2]} 7. f3 {[%clk 0:02:34.6]} 7... a6 {[%clk 0:02:43.6]} 8. Nc4
{[%clk 0:02:34]} 8... Kc7 {[%clk 0:02:41.7]} 9. Nxe5 {[%clk 0:02:33.5]} 9... Be6
{[%clk 0:02:41]} 10. Bc4 {[%clk 0:02:30.3]} 10... Bxc4 {[%clk 0:02:38.8]} 11.
Nxc4 {[%clk 0:02:30]} 11... b5 {[%clk 0:02:39.3]} 12. Bf4+ {[%clk 0:02:29.9]}
12... Kc6 {[%clk 0:02:39.3]} 13. Ne5+ {[%clk 0:02:29.7]} 13... Kb6 {[%clk
0:02:39.4]} 14. Nxf7 {[%clk 0:02:29]} 14... Rg8 {[%clk 0:02:39.4]} 15. O-O-O
{[%clk 0:02:28.2]} 15... Nc6 {[%clk 0:02:38.1]} 16. Nh3 {[%clk 0:02:26.6]} 16...
h6 {[%clk 0:02:37.2]} 17. Ne5 {[%clk 0:02:26.6]} 17... Nd4 {[%clk 0:02:36.5]}
18. Rhe1 {[%clk 0:02:23.4]} 18... Re8 {[%clk 0:02:28.9]} 19. c3 {[%clk
0:02:23.1]} 19... Ne6 {[%clk 0:02:23.5]} 20. Bg3 {[%clk 0:02:21.7]} 20... Nh5
{[%clk 0:02:21.6]} 21. Nd7+ {[%clk 0:02:20.6]} 21... Kb7 {[%clk 0:02:16]} 22.
Nxf8 {[%clk 0:02:20.6]} 22... Rgxf8 {[%clk 0:02:12.5]} 23. Rd5 {[%clk
0:02:20.5]} 23... Nxg3 {[%clk 0:02:12]} 24. hxg3 {[%clk 0:02:21.4]} 24... Rd8
{[%clk 0:02:09.5]} 25. Red1 {[%clk 0:02:22]} 25... Rxd5 {[%clk 0:02:08]} 26.
Rxd5 {[%clk 0:02:22.9]} 26... Kc6 {[%clk 0:02:07.7]} 27. Kd2 {[%clk 0:02:21.3]}
27... g5 {[%clk 0:02:07.5]} 28. Ke3 {[%clk 0:02:20.7]} 28... c4 {[%clk
0:02:07.2]} 29. Ng1 {[%clk 0:02:15.5]} 29... Nc5 {[%clk 0:02:06.2]} 30. Ne2
{[%clk 0:02:15.9]} 30... Nd3 {[%clk 0:02:06]} 31. Nd4+ {[%clk 0:02:15.4]} 31...
Kb7 {[%clk 0:02:02.4]} 32. Rd7+ {[%clk 0:02:13.8]} 32... Kc8 {[%clk 0:02:00.5]}
33. Ra7 {[%clk 0:02:13.7]} 33... Rf6 {[%clk 0:01:58.5]} 34. b4 {[%clk
0:02:08.8]} 34... Ne1 {[%clk 0:01:53.6]} 35. e5 {[%clk 0:02:06.1]} 35... Rb6
{[%clk 0:01:53.2]} 36. e6 {[%clk 0:02:06.1]} 36... Kd8 {[%clk 0:01:53.1]} 37.
Ke4 {[%clk 0:02:04.7]} 37... Nxg2 {[%clk 0:01:52.9]} 38. Kd5 {[%clk 0:02:01.5]}
38... Ne3+ {[%clk 0:01:48.8]} 39. Kc5 {[%clk 0:02:02]} 39... Rb8 {[%clk
0:01:49]} 40. Nc6+ {[%clk 0:02:02.2]} 40... Kc8 {[%clk 0:01:43.7]} 41. e7 {[%clk
0:02:02.5]} 1-0